[Event "Early-Titled-Tuesday-Blitz-March-19-2024"]
[Site "Chess.com"]
[Date "2024.03.19"]
[Round "3"]
[White "SharapovEvgeny"]
[Black "adotand"]
[Result "0-1"]
[WhiteElo "2567"]
[BlackElo "2996"]
[TimeControl "180+1"]
[EndTime "8:27:08 PDT"]
[Termination "adotand won by resignation"]

1. e4 {[%clk 0:03:00]} 1... c5 {[%clk 0:03:00.3]} 2. Nf3 {[%clk 0:03:00]} 2...
Nc6 {[%clk 0:03:00.9]} 3. d4 {[%clk 0:03:00.3]} 3... cxd4 {[%clk 0:03:01.4]} 4.
Nxd4 {[%clk 0:03:00.6]} 4... Nf6 {[%clk 0:03:02.2]} 5. Nc3 {[%clk 0:03:00.4]}
5... d6 {[%clk 0:03:02.6]} 6. g3 {[%clk 0:02:58.4]} 6... e5 {[%clk 0:03:01.6]}
7. Nb3 {[%clk 0:02:57.6]} 7... Be7 {[%clk 0:03:00.8]} 8. Bg2 {[%clk 0:02:57.5]}
8... O-O {[%clk 0:03:00.8]} 9. O-O {[%clk 0:02:57.4]} 9... a5 {[%clk 0:03:01.5]}
10. a4 {[%clk 0:02:57]} 10... Nb4 {[%clk 0:03:01.2]} 11. Bg5 {[%clk 0:02:46.6]}
11... Be6 {[%clk 0:03:01]} 12. Bxf6 {[%clk 0:02:46.4]} 12... Bxf6 {[%clk
0:03:00.3]} 13. Nd5 {[%clk 0:02:39.5]} 13... Nxd5 {[%clk 0:02:51.8]} 14. exd5
{[%clk 0:02:39.2]} 14... Bd7 {[%clk 0:02:51.9]} 15. Nd2 {[%clk 0:02:35.6]} 15...
Be7 {[%clk 0:02:51.5]} 16. Nc4 {[%clk 0:02:33.9]} 16... Qc7 {[%clk 0:02:48.3]}
17. b3 {[%clk 0:02:33.9]} 17... f5 {[%clk 0:02:46.2]} 18. Qe2 {[%clk 0:02:33.6]}
18... Bf6 {[%clk 0:02:44.7]} 19. Rad1 {[%clk 0:02:33]} 19... Rae8 {[%clk
0:02:40.7]} 20. Qd2 {[%clk 0:02:31.9]} 20... b6 {[%clk 0:02:38.6]} 21. Qe3
{[%clk 0:02:31.7]} 21... Bd8 {[%clk 0:02:35.2]} 22. Kh1 {[%clk 0:02:25.7]} 22...
Bc8 {[%clk 0:02:23.8]} 23. Na3 {[%clk 0:02:20.5]} 23... e4 {[%clk 0:02:04.9]}
24. Nb5 {[%clk 0:02:19.3]} 24... Qd7 {[%clk 0:02:01.9]} 25. f3 {[%clk
0:02:16.6]} 25... exf3 {[%clk 0:02:00.2]} 26. Qxf3 {[%clk 0:02:16.7]} 26... Bf6
{[%clk 0:01:59.6]} 27. Rfe1 {[%clk 0:02:11.6]} 27... Be5 {[%clk 0:01:59.5]} 28.
Qf2 {[%clk 0:01:56.2]} 28... f4 {[%clk 0:01:57.7]} 29. Rxe5 {[%clk 0:01:43.2]}
29... dxe5 {[%clk 0:01:47.7]} 30. Qxb6 {[%clk 0:01:25.3]} 30... f3 {[%clk
0:01:47.6]} 31. Bf1 {[%clk 0:01:25.4]} 31... e4 {[%clk 0:01:47.5]} 32. Nc7
{[%clk 0:01:16.6]} 32... e3 {[%clk 0:01:28]} 33. Nxe8 {[%clk 0:01:13.7]} 33...
e2 {[%clk 0:01:26.1]} 34. Re1 {[%clk 0:00:57.6]} 34... exf1=Q+ {[%clk
0:01:20.7]} 35. Rxf1 {[%clk 0:00:57.9]} 35... Qxe8 {[%clk 0:01:21.3]} 36. c4
{[%clk 0:00:54.6]} 36... Bh3 {[%clk 0:01:17.3]} 0-1

[Event "Early-Titled-Tuesday-Blitz-March-19-2024"]
[Site "Chess.com"]
[Date "2024.03.19"]
[Round "3"]
[White "ikhasu"]
[Black "marcodobrikov"]
[Result "1-0"]
[WhiteElo "2480"]
[BlackElo "2658"]
[TimeControl "180+1"]
[EndTime "8:27:09 PDT"]
[Termination "ikhasu won by resignation"]

1. d4 {[%clk 0:03:00.3]} 1... g6 {[%clk 0:02:49.8]} 2. Nf3 {[%clk 0:02:59.9]}
2... Bg7 {[%clk 0:02:49.8]} 3. b3 {[%clk 0:03:00.4]} 3... c5 {[%clk 0:02:49.2]}
4. Bb2 {[%clk 0:03:01.1]} 4... cxd4 {[%clk 0:02:49.6]} 5. Bxd4 {[%clk
0:03:00.8]} 5... Nf6 {[%clk 0:02:49.8]} 6. c4 {[%clk 0:02:59.7]} 6... Nc6 {[%clk
0:02:50.1]} 7. Bb2 {[%clk 0:02:59.2]} 7... O-O {[%clk 0:02:50.8]} 8. e3 {[%clk
0:02:59.3]} 8... d5 {[%clk 0:02:47.2]} 9. cxd5 {[%clk 0:02:57.6]} 9... Nb4
{[%clk 0:02:46.9]} 10. Be2 {[%clk 0:02:48.5]} 10... Bf5 {[%clk 0:02:44]} 11. Na3
{[%clk 0:02:36.6]} 11... Nfxd5 {[%clk 0:02:30.1]} 12. Bxg7 {[%clk 0:02:35.3]}
12... Kxg7 {[%clk 0:02:31]} 13. e4 {[%clk 0:02:15]} 13... Qa5 {[%clk 0:02:19.4]}
14. Nc4 {[%clk 0:02:11.3]} 14... Qc5 {[%clk 0:01:45]} 15. exf5 {[%clk
0:02:02.4]} 15... Nc3 {[%clk 0:01:40.8]} 16. Qd2 {[%clk 0:01:53.5]} 16... Nxe2
{[%clk 0:01:33.6]} 17. Qxe2 {[%clk 0:01:49.2]} 17... Qxf5 {[%clk 0:01:33.6]} 18.
O-O {[%clk 0:01:47.1]} 18... e6 {[%clk 0:01:33.1]} 19. Nd4 {[%clk 0:01:41.4]}
19... Qc5 {[%clk 0:01:29.9]} 20. Rad1 {[%clk 0:01:38.5]} 20... Rad8 {[%clk
0:01:25.2]} 21. Qe3 {[%clk 0:01:38.4]} 21... b6 {[%clk 0:01:12.2]} 22. Ne5
{[%clk 0:01:29]} 22... Rd5 {[%clk 0:01:09.2]} 23. Nd7 {[%clk 0:01:22.8]} 23...
Rxd7 {[%clk 0:00:55.1]} 24. Nxe6+ {[%clk 0:01:22.9]} 24... fxe6 {[%clk
0:00:55.1]} 25. Rxd7+ {[%clk 0:01:23.2]} 25... Rf7 {[%clk 0:00:52.2]} 26. Qxe6
{[%clk 0:01:18.2]} 26... Rxd7 {[%clk 0:00:50.9]} 27. Qxd7+ {[%clk 0:01:18.5]}
27... Kh6 {[%clk 0:00:51.5]} 28. Rd1 {[%clk 0:01:08.2]} 28... Nxa2 {[%clk
0:00:48.7]} 29. Qd2+ {[%clk 0:01:07.4]} 29... Kg7 {[%clk 0:00:46]} 30. Qxa2
{[%clk 0:01:07.9]} 30... Qh5 {[%clk 0:00:46.2]} 31. Qxa7+ {[%clk 0:01:07.6]}
31... Kh6 {[%clk 0:00:46.1]} 32. Qd7 {[%clk 0:01:07.3]} 32... Qe5 {[%clk
0:00:45]} 33. Qd2+ {[%clk 0:01:07.2]} 33... Kh5 {[%clk 0:00:44.2]} 34. Qd5
{[%clk 0:01:07.2]} 1-0

[Event "Early-Titled-Tuesday-Blitz-March-19-2024"]
[Site "Chess.com"]
[Date "2024.03.19"]
[Round "3"]
[White "Revan_2002"]
[Black "NowInChess"]
[Result "1-0"]
[WhiteElo "2582"]
[BlackElo "2254"]
[TimeControl "180+1"]
[EndTime "8:27:12 PDT"]
[Termination "Revan_2002 won by checkmate"]

1. c4 {[%clk 0:02:59.3]} 1... e5 {[%clk 0:02:58.8]} 2. Nc3 {[%clk 0:02:58.5]}
2... d6 {[%clk 0:02:58.6]} 3. g3 {[%clk 0:02:57.2]} 3... g6 {[%clk 0:02:58.7]}
4. Bg2 {[%clk 0:02:57.7]} 4... Bg7 {[%clk 0:02:58.7]} 5. d3 {[%clk 0:02:58.3]}
5... Nf6 {[%clk 0:02:58.7]} 6. Nf3 {[%clk 0:02:58.9]} 6... O-O {[%clk
0:02:58.9]} 7. O-O {[%clk 0:02:59.6]} 7... Nc6 {[%clk 0:02:58.6]} 8. Rb1 {[%clk
0:03:00.1]} 8... Nh5 {[%clk 0:02:57.9]} 9. b4 {[%clk 0:02:56.8]} 9... f5 {[%clk
0:02:56.5]} 10. b5 {[%clk 0:02:56.6]} 10... Ne7 {[%clk 0:02:56.1]} 11. Bg5
{[%clk 0:02:56.5]} 11... h6 {[%clk 0:02:43.6]} 12. Bxe7 {[%clk 0:02:54.6]} 12...
Qxe7 {[%clk 0:02:44.5]} 13. Nd5 {[%clk 0:02:55]} 13... Qf7 {[%clk 0:02:45.1]}
14. Nd2 {[%clk 0:02:55.6]} 14... Kh7 {[%clk 0:02:43]} 15. a4 {[%clk 0:02:55.5]}
15... g5 {[%clk 0:02:37.3]} 16. a5 {[%clk 0:02:55.3]} 16... Rb8 {[%clk
0:02:36.8]} 17. e3 {[%clk 0:02:49.8]} 17... f4 {[%clk 0:02:32.4]} 18. Rc1 {[%clk
0:02:21.2]} 18... g4 {[%clk 0:02:25.8]} 19. Be4+ {[%clk 0:02:17.1]} 19... Kh8
{[%clk 0:02:23.7]} 20. c5 {[%clk 0:02:16.1]} 20... f3 {[%clk 0:02:07]} 21. cxd6
{[%clk 0:02:15.1]} 21... cxd6 {[%clk 0:02:07.9]} 22. Rc7 {[%clk 0:02:15.3]}
22... Bd7 {[%clk 0:01:50.7]} 23. Nc4 {[%clk 0:02:13]} 23... Qe6 {[%clk 0:01:39]}
24. Qb3 {[%clk 0:01:39.6]} 24... Nf6 {[%clk 0:01:29.7]} 25. Nxf6 {[%clk
0:01:39.2]} 25... Bxf6 {[%clk 0:01:26.2]} 26. Nd2 {[%clk 0:01:38.8]} 26... Qxb3
{[%clk 0:01:17.5]} 27. Nxb3 {[%clk 0:01:39.6]} 27... Bxb5 {[%clk 0:01:17.9]} 28.
Rfc1 {[%clk 0:01:38.4]} 28... Ba4 {[%clk 0:01:04.8]} 29. Nd2 {[%clk 0:01:32.5]}
29... b5 {[%clk 0:00:59]} 30. Rh7+ {[%clk 0:01:31.3]} 30... Kg8 {[%clk
0:00:57.9]} 31. Rcc7 {[%clk 0:01:31.7]} 31... Rfc8 {[%clk 0:00:43]} 32. Bd5+
{[%clk 0:01:25.3]} 32... Kf8 {[%clk 0:00:43.1]} 33. Rhf7+ {[%clk 0:01:25.5]}
33... Ke8 {[%clk 0:00:41.1]} 34. Bc6+ {[%clk 0:01:22.1]} 34... Kd8 {[%clk
0:00:36.9]} 35. Rcd7+ {[%clk 0:01:22.2]} 35... Ke8 {[%clk 0:00:36.5]} 36. Rde7+
{[%clk 0:01:22.4]} 36... Kd8 {[%clk 0:00:35.7]} 37. Re8# {[%clk 0:01:22.6]} 1-0

[Event "Early-Titled-Tuesday-Blitz-March-19-2024"]
[Site "Chess.com"]
[Date "2024.03.19"]
[Round "3"]
[White "Balla_Tamas"]
[Black "tarno17"]
[Result "1-0"]
[WhiteElo "2408"]
[BlackElo "2194"]
[TimeControl "180+1"]
[EndTime "8:27:12 PDT"]
[Termination "Balla_Tamas won on time"]

1. e4 {[%clk 0:03:00.9]} 1... c5 {[%clk 0:02:59.2]} 2. c3 {[%clk 0:03:00.3]}
2... d5 {[%clk 0:02:59.1]} 3. exd5 {[%clk 0:03:00.4]} 3... Qxd5 {[%clk
0:02:59.8]} 4. d4 {[%clk 0:03:01.1]} 4... e6 {[%clk 0:02:59.8]} 5. Nf3 {[%clk
0:03:01.2]} 5... Nf6 {[%clk 0:03:00.1]} 6. Be3 {[%clk 0:03:01.4]} 6... cxd4
{[%clk 0:02:59.5]} 7. cxd4 {[%clk 0:03:01.6]} 7... a6 {[%clk 0:02:57.2]} 8. Nc3
{[%clk 0:03:02]} 8... Qd6 {[%clk 0:02:56.6]} 9. Bd3 {[%clk 0:03:01.8]} 9... Be7
{[%clk 0:02:54.3]} 10. O-O {[%clk 0:03:01.6]} 10... O-O {[%clk 0:02:54]} 11. Qe2
{[%clk 0:03:01.4]} 11... Nbd7 {[%clk 0:02:37.2]} 12. Rad1 {[%clk 0:02:59.9]}
12... b5 {[%clk 0:02:28.6]} 13. Bg5 {[%clk 0:02:37.8]} 13... Bb7 {[%clk
0:02:18.8]} 14. Ne5 {[%clk 0:02:30.3]} 14... h6 {[%clk 0:02:06.6]} 15. Bh4
{[%clk 0:02:28.2]} 15... b4 {[%clk 0:01:49.4]} 16. Na4 {[%clk 0:02:17.8]} 16...
Bd5 {[%clk 0:00:08.3]} 17. b3 {[%clk 0:02:08.4]} 17... Rfc8 {[%clk 0:00:06.6]}
18. Bb1 {[%clk 0:02:08]} 18... Nf8 {[%clk 0:00:06.4]} 19. Rfe1 {[%clk
0:02:04.2]} 19... a5 {[%clk 0:00:05.4]} 20. Bg3 {[%clk 0:01:57.1]} 20... Qa6
{[%clk 0:00:03.8]} 21. Bd3 {[%clk 0:01:50.5]} 21... Qb7 {[%clk 0:00:04]} 22. f3
{[%clk 0:01:39.6]} 22... Bc6 {[%clk 0:00:02.3]} 23. Nb2 {[%clk 0:01:33.1]} 23...
a4 {[%clk 0:00:01.8]} 24. Nxc6 {[%clk 0:01:29.4]} 24... Rxc6 {[%clk 0:00:01.8]}
25. Nxa4 {[%clk 0:01:29.5]} 25... Rac8 {[%clk 0:00:01.5]} 26. Be5 {[%clk
0:01:29.5]} 1-0

[Event "Early-Titled-Tuesday-Blitz-March-19-2024"]
[Site "Chess.com"]
[Date "2024.03.19"]
[Round "3"]
[White "Byniolus"]
[Black "Orest_Vovk"]
[Result "1-0"]
[WhiteElo "2808"]
[BlackElo "2526"]
[TimeControl "180+1"]
[EndTime "8:27:13 PDT"]
[Termination "Byniolus won by resignation"]

1. d4 {[%clk 0:03:00.9]} 1... Nc6 {[%clk 0:02:55.4]} 2. Nf3 {[%clk 0:03:00.8]}
2... e6 {[%clk 0:02:50.5]} 3. Bf4 {[%clk 0:03:00.6]} 3... Be7 {[%clk 0:02:48.1]}
4. h3 {[%clk 0:03:00.3]} 4... g5 {[%clk 0:02:47.7]} 5. Bh2 {[%clk 0:02:57.8]}
5... d6 {[%clk 0:02:38.4]} 6. e4 {[%clk 0:02:55.9]} 6... Nf6 {[%clk 0:02:33]} 7.
Nc3 {[%clk 0:02:55.9]} 7... g4 {[%clk 0:02:28.9]} 8. hxg4 {[%clk 0:02:53]} 8...
Nxg4 {[%clk 0:02:29.1]} 9. Bg3 {[%clk 0:02:53.4]} 9... e5 {[%clk 0:01:53.9]} 10.
dxe5 {[%clk 0:02:50.9]} 10... Ncxe5 {[%clk 0:01:48.6]} 11. Be2 {[%clk
0:02:43.6]} 11... Nxf3+ {[%clk 0:01:42.5]} 12. gxf3 {[%clk 0:02:38.8]} 12... Ne5
{[%clk 0:01:43.4]} 13. f4 {[%clk 0:02:31.8]} 13... Nc6 {[%clk 0:01:40.4]} 14.
Qd2 {[%clk 0:02:24.7]} 14... Bf6 {[%clk 0:01:21.3]} 15. O-O-O {[%clk 0:02:22.2]}
15... Bxc3 {[%clk 0:00:42.9]} 16. Qxc3 {[%clk 0:02:21.2]} 16... Rf8 {[%clk
0:00:43]} 17. Rxh7 {[%clk 0:02:14.3]} 17... Be6 {[%clk 0:00:38.8]} 18. f5 {[%clk
0:02:01.5]} 18... Bd7 {[%clk 0:00:34.4]} 19. Bh4 {[%clk 0:01:54.4]} 19... Qb8
{[%clk 0:00:14.4]} 20. Qg7 {[%clk 0:01:33.4]} 20... b5 {[%clk 0:00:08.1]} 21.
Bf6 {[%clk 0:01:29.3]} 21... Ne7 {[%clk 0:00:04.6]} 22. Qxf8+ {[%clk 0:01:22.2]}
22... Kxf8 {[%clk 0:00:04.3]} 23. Rh8+ {[%clk 0:01:23.1]} 23... Ng8 {[%clk
0:00:04.5]} 24. Rxg8+ {[%clk 0:01:24]} 24... Kxg8 {[%clk 0:00:04.3]} 25. Rh1
{[%clk 0:01:24.9]} 1-0

[Event "Early-Titled-Tuesday-Blitz-March-19-2024"]
[Site "Chess.com"]
[Date "2024.03.19"]
[Round "3"]
[White "Fjal"]
[Black "Daaksboy"]
[Result "0-1"]
[WhiteElo "2324"]
[BlackElo "1920"]
[TimeControl "180+1"]
[EndTime "8:27:15 PDT"]
[Termination "Daaksboy won by resignation"]

1. Nf3 {[%clk 0:02:58.1]} 1... Nf6 {[%clk 0:02:59.9]} 2. g3 {[%clk 0:02:59]}
2... b6 {[%clk 0:03:00.1]} 3. Bg2 {[%clk 0:02:59.7]} 3... Bb7 {[%clk 0:03:00.7]}
4. O-O {[%clk 0:03:00.6]} 4... e6 {[%clk 0:03:00.9]} 5. c4 {[%clk 0:03:01]} 5...
Be7 {[%clk 0:03:01.3]} 6. Nc3 {[%clk 0:03:01.9]} 6... O-O {[%clk 0:03:01.6]} 7.
d4 {[%clk 0:03:01.8]} 7... h6 {[%clk 0:02:56.1]} 8. Qc2 {[%clk 0:03:02.3]} 8...
Qc8 {[%clk 0:02:52.6]} 9. e4 {[%clk 0:03:02.5]} 9... d5 {[%clk 0:02:48.5]} 10.
cxd5 {[%clk 0:03:01.5]} 10... exd5 {[%clk 0:02:48.2]} 11. e5 {[%clk 0:03:02.4]}
11... Ne4 {[%clk 0:02:47.8]} 12. Nxe4 {[%clk 0:02:56.8]} 12... dxe4 {[%clk
0:02:47.9]} 13. Nd2 {[%clk 0:02:57.7]} 13... Nc6 {[%clk 0:02:47.9]} 14. Nb3
{[%clk 0:02:50.5]} 14... Rd8 {[%clk 0:02:38.2]} 15. Rd1 {[%clk 0:02:49.9]} 15...
Nb4 {[%clk 0:02:36.9]} 16. Qe2 {[%clk 0:02:48.7]} 16... a5 {[%clk 0:02:35.8]}
17. a4 {[%clk 0:02:26]} 17... Qe6 {[%clk 0:02:33.5]} 18. Nd2 {[%clk 0:01:07.6]}
18... Rxd4 {[%clk 0:02:31.5]} 19. Nxe4 {[%clk 0:01:06.4]} 19... Rxd1+ {[%clk
0:02:29.6]} 20. Qxd1 {[%clk 0:01:07.3]} 20... Qxe5 {[%clk 0:02:20.1]} 21. Bf4
{[%clk 0:00:59.2]} 21... Qe6 {[%clk 0:02:10.7]} 22. Bxc7 {[%clk 0:00:51]} 22...
Bxe4 {[%clk 0:02:07.8]} 23. Qd4 {[%clk 0:00:42.4]} 23... Bxg2 {[%clk 0:02:04.7]}
24. Kxg2 {[%clk 0:00:42.4]} 24... Qd5+ {[%clk 0:02:04.4]} 25. Qxd5 {[%clk
0:00:42.4]} 25... Nxd5 {[%clk 0:02:05.3]} 26. Be5 {[%clk 0:00:43.1]} 26... Bf6
{[%clk 0:02:03]} 27. Bxf6 {[%clk 0:00:40.9]} 27... Nxf6 {[%clk 0:02:03.6]} 28.
Rc1 {[%clk 0:00:40.1]} 28... Kf8 {[%clk 0:02:00.7]} 29. Rc6 {[%clk 0:00:40.6]}
29... Nd7 {[%clk 0:01:59.1]} 30. Kf3 {[%clk 0:00:40.5]} 30... Ke7 {[%clk
0:01:59.3]} 31. Ke4 {[%clk 0:00:40.2]} 31... Rd8 {[%clk 0:01:56.2]} 32. f4
{[%clk 0:00:39.5]} 32... Nc5+ {[%clk 0:01:56.3]} 33. Ke3 {[%clk 0:00:39.4]}
33... Nxa4 {[%clk 0:01:56]} 34. b3 {[%clk 0:00:37.6]} 34... Nc5 {[%clk
0:01:54.8]} 35. Rxb6 {[%clk 0:00:37]} 35... Rd3+ {[%clk 0:01:54.7]} 36. Ke2
{[%clk 0:00:37.4]} 36... Rxb3 {[%clk 0:01:54.7]} 37. Rc6 {[%clk 0:00:37.2]}
37... Rb2+ {[%clk 0:01:54.4]} 38. Ke3 {[%clk 0:00:37]} 38... Ne6 {[%clk
0:01:53.7]} 39. Ra6 {[%clk 0:00:37.2]} 39... Ra2 {[%clk 0:01:52.7]} 40. f5
{[%clk 0:00:37.3]} 40... Nc5 {[%clk 0:01:52.5]} 41. Ra7+ {[%clk 0:00:37.6]}
41... Nd7 {[%clk 0:01:52.5]} 42. Kd4 {[%clk 0:00:38.5]} 42... a4 {[%clk
0:01:52.8]} 43. g4 {[%clk 0:00:38.1]} 43... a3 {[%clk 0:01:51.3]} 44. h4 {[%clk
0:00:38.5]} 44... Rg2 {[%clk 0:01:50.6]} 45. g5 {[%clk 0:00:35.4]} 45... hxg5
{[%clk 0:01:50.1]} 46. hxg5 {[%clk 0:00:36.3]} 46... Rxg5 {[%clk 0:01:50]} 47.
Rxa3 {[%clk 0:00:37.2]} 47... Rxf5 {[%clk 0:01:50.4]} 48. Re3+ {[%clk
0:00:37.9]} 48... Re5 {[%clk 0:01:50.1]} 49. Rg3 {[%clk 0:00:38.8]} 49... g5
{[%clk 0:01:49.8]} 0-1

[Event "Early-Titled-Tuesday-Blitz-March-19-2024"]
[Site "Chess.com"]
[Date "2024.03.19"]
[Round "3"]
[White "NovozhilovSemen"]
[Black "YaWaleriy"]
[Result "1-0"]
[WhiteElo "2622"]
[BlackElo "2391"]
[TimeControl "180+1"]
[EndTime "8:27:18 PDT"]
[Termination "NovozhilovSemen won by resignation"]

1. d4 {[%clk 0:03:00.5]} 1... d5 {[%clk 0:02:59.3]} 2. c4 {[%clk 0:02:58.6]}
2... e6 {[%clk 0:02:59.2]} 3. Nf3 {[%clk 0:02:58.5]} 3... Nf6 {[%clk 0:02:59]}
4. g3 {[%clk 0:02:58.7]} 4... Be7 {[%clk 0:02:58.6]} 5. Bg2 {[%clk 0:02:58.6]}
5... O-O {[%clk 0:02:58.5]} 6. O-O {[%clk 0:02:59.5]} 6... c6 {[%clk 0:02:58.6]}
7. Qc2 {[%clk 0:02:57]} 7... b6 {[%clk 0:02:58.4]} 8. Nbd2 {[%clk 0:02:56.6]}
8... Bb7 {[%clk 0:02:58.4]} 9. e4 {[%clk 0:02:52.5]} 9... Na6 {[%clk 0:02:57]}
10. a3 {[%clk 0:02:48.3]} 10... Rc8 {[%clk 0:02:52]} 11. e5 {[%clk 0:02:46.7]}
11... Ne8 {[%clk 0:02:51.5]} 12. cxd5 {[%clk 0:02:46.5]} 12... cxd5 {[%clk
0:02:50.5]} 13. Qa4 {[%clk 0:02:46.7]} 13... Nec7 {[%clk 0:02:42.9]} 14. Re1
{[%clk 0:02:46.3]} 14... Qe8 {[%clk 0:02:40.2]} 15. Qd1 {[%clk 0:02:43.2]} 15...
b5 {[%clk 0:02:34]} 16. Bf1 {[%clk 0:02:41.7]} 16... Na8 {[%clk 0:02:31.1]} 17.
h4 {[%clk 0:02:41.2]} 17... h6 {[%clk 0:02:30.4]} 18. b3 {[%clk 0:02:39.9]}
18... Nb6 {[%clk 0:02:27.2]} 19. Bb2 {[%clk 0:02:35.8]} 19... Nc7 {[%clk
0:02:26.9]} 20. Rc1 {[%clk 0:02:33.7]} 20... a5 {[%clk 0:02:26.6]} 21. Re3
{[%clk 0:02:26.3]} 21... a4 {[%clk 0:02:24.1]} 22. Ne1 {[%clk 0:02:26.7]} 22...
axb3 {[%clk 0:02:18.9]} 23. Rxb3 {[%clk 0:02:27.6]} 23... Ba6 {[%clk 0:02:14.5]}
24. Nd3 {[%clk 0:02:26.8]} 24... Nc4 {[%clk 0:02:13.8]} 25. Nc5 {[%clk
0:02:23.1]} 25... Bxc5 {[%clk 0:02:09.6]} 26. dxc5 {[%clk 0:02:24]} 26... Qe7
{[%clk 0:01:59.4]} 27. Bd4 {[%clk 0:02:19.8]} 27... Qd7 {[%clk 0:01:32.3]} 28.
Rb4 {[%clk 0:02:15.8]} 28... Bb7 {[%clk 0:01:30.1]} 29. a4 {[%clk 0:01:54]}
29... Bc6 {[%clk 0:01:23.8]} 30. axb5 {[%clk 0:01:50.9]} 30... Nxb5 {[%clk
0:01:23.6]} 31. Nxc4 {[%clk 0:01:47.7]} 31... dxc4 {[%clk 0:01:21.1]} 32. Be3
{[%clk 0:01:48]} 32... Qd5 {[%clk 0:01:13.9]} 33. f3 {[%clk 0:01:21.9]} 33...
Rb8 {[%clk 0:01:02]} 34. Bxc4 {[%clk 0:01:14.3]} 34... Qxf3 {[%clk 0:01:01.1]}
35. Qxf3 {[%clk 0:01:13.3]} 35... Bxf3 {[%clk 0:01:01]} 36. Rxb5 {[%clk
0:01:11.8]} 1-0

[Event "Early-Titled-Tuesday-Blitz-March-19-2024"]
[Site "Chess.com"]
[Date "2024.03.19"]
[Round "3"]
[White "Sadykov_Ramil"]
[Black "pirulillo"]
[Result "0-1"]
[WhiteElo "2595"]
[BlackElo "2368"]
[TimeControl "180+1"]
[EndTime "8:27:26 PDT"]
[Termination "pirulillo won by checkmate"]

1. d4 {[%clk 0:03:00.9]} 1... Nf6 {[%clk 0:02:59.7]} 2. Nc3 {[%clk 0:03:00.1]}
2... d5 {[%clk 0:02:59.4]} 3. Bf4 {[%clk 0:03:00.6]} 3... g6 {[%clk 0:02:59.2]}
4. Qd2 {[%clk 0:02:59.8]} 4... Bg7 {[%clk 0:02:57]} 5. Bh6 {[%clk 0:03:00.1]}
5... O-O {[%clk 0:02:55.8]} 6. Bxg7 {[%clk 0:02:47.3]} 6... Kxg7 {[%clk
0:02:56.7]} 7. O-O-O {[%clk 0:02:44.2]} 7... c6 {[%clk 0:02:30.8]} 8. Nf3 {[%clk
0:02:17.1]} 8... b5 {[%clk 0:02:29.9]} 9. Ne5 {[%clk 0:02:17.5]} 9... Qa5 {[%clk
0:02:25.8]} 10. a3 {[%clk 0:02:01.7]} 10... Qb6 {[%clk 0:02:05]} 11. f3 {[%clk
0:01:42.6]} 11... a5 {[%clk 0:02:02]} 12. h4 {[%clk 0:01:38.3]} 12... h5 {[%clk
0:02:00.8]} 13. g4 {[%clk 0:01:37.1]} 13... b4 {[%clk 0:01:47.6]} 14. Na4 {[%clk
0:01:33.6]} 14... Qc7 {[%clk 0:01:45.9]} 15. g5 {[%clk 0:01:06.7]} 15... Nfd7
{[%clk 0:01:43.4]} 16. Nxd7 {[%clk 0:01:04]} 16... Nxd7 {[%clk 0:01:44.3]} 17.
axb4 {[%clk 0:01:01.9]} 17... axb4 {[%clk 0:01:43.5]} 18. Qxb4 {[%clk
0:01:02.8]} 18... Ba6 {[%clk 0:01:36.4]} 19. b3 {[%clk 0:00:58.4]} 19... Bb5
{[%clk 0:01:31.2]} 20. Qxe7 {[%clk 0:00:33.6]} 20... Bxa4 {[%clk 0:01:25.2]} 21.
bxa4 {[%clk 0:00:34.5]} 21... Rxa4 {[%clk 0:01:23.8]} 22. Bh3 {[%clk 0:00:30.7]}
22... Qa5 {[%clk 0:01:21.7]} 23. Qxf8+ {[%clk 0:00:04]} 23... Kxf8 {[%clk
0:01:18.8]} 24. Bxd7 {[%clk 0:00:03.3]} 24... Ra1+ {[%clk 0:01:17.4]} 25. Kb2
{[%clk 0:00:03.3]} 25... Qa3# {[%clk 0:01:17.2]} 0-1

[Event "Early-Titled-Tuesday-Blitz-March-19-2024"]
[Site "Chess.com"]
[Date "2024.03.19"]
[Round "3"]
[White "nihalsarin"]
[Black "Nuvas"]
[Result "1-0"]
[WhiteElo "3176"]
[BlackElo "2828"]
[TimeControl "180+1"]
[EndTime "8:27:27 PDT"]
[Termination "nihalsarin won by resignation"]

1. a3 {[%clk 0:03:00.9]} 1... g6 {[%clk 0:02:59]} 2. e4 {[%clk 0:02:53.1]} 2...
c5 {[%clk 0:02:59.2]} 3. b4 {[%clk 0:02:41.8]} 3... Bg7 {[%clk 0:02:59]} 4. Ra2
{[%clk 0:02:42.4]} 4... b6 {[%clk 0:02:54.7]} 5. Bb2 {[%clk 0:02:40.1]} 5... Nf6
{[%clk 0:02:49.5]} 6. e5 {[%clk 0:02:40.3]} 6... Nd5 {[%clk 0:02:44.6]} 7. Qf3
{[%clk 0:02:36.9]} 7... e6 {[%clk 0:02:41]} 8. c4 {[%clk 0:02:30.1]} 8... Nc7
{[%clk 0:02:41]} 9. b5 {[%clk 0:02:15.5]} 9... a6 {[%clk 0:02:32.6]} 10. h4
{[%clk 0:02:13.6]} 10... h5 {[%clk 0:02:26.2]} 11. Nc3 {[%clk 0:01:35.6]} 11...
Ra7 {[%clk 0:01:57.3]} 12. Ne4 {[%clk 0:01:27.2]} 12... O-O {[%clk 0:01:51.7]}
13. Nf6+ {[%clk 0:00:57.8]} 13... Kh8 {[%clk 0:01:51.7]} 14. Nh3 {[%clk
0:00:51.7]} 14... Ne8 {[%clk 0:01:34]} 15. Nxh5 {[%clk 0:00:42.6]} 15... Bb7
{[%clk 0:01:26.6]} 16. Qg4 {[%clk 0:00:42.2]} 16... d6 {[%clk 0:01:13.9]} 17.
Nxg7 {[%clk 0:00:39.9]} 17... Nxg7 {[%clk 0:01:10.4]} 18. h5 {[%clk 0:00:33.8]}
18... gxh5 {[%clk 0:01:05.3]} 19. Nf4 {[%clk 0:00:24.1]} 1-0

[Event "Early-Titled-Tuesday-Blitz-March-19-2024"]
[Site "Chess.com"]
[Date "2024.03.19"]
[Round "3"]
[White "jocmil"]
[Black "Schattman"]
[Result "1-0"]
[WhiteElo "2766"]
[BlackElo "2511"]
[TimeControl "180+1"]
[EndTime "8:27:30 PDT"]
[Termination "jocmil won on time"]

1. b3 {[%clk 0:03:00.2]} 1... Nf6 {[%clk 0:02:57.8]} 2. Bb2 {[%clk 0:02:58.4]}
2... g6 {[%clk 0:02:58]} 3. g3 {[%clk 0:02:56.3]} 3... Bg7 {[%clk 0:02:56.9]} 4.
Bg2 {[%clk 0:02:56.7]} 4... c5 {[%clk 0:02:53.2]} 5. Nf3 {[%clk 0:02:56.4]} 5...
Nc6 {[%clk 0:02:52.4]} 6. O-O {[%clk 0:02:56.9]} 6... O-O {[%clk 0:02:52.4]} 7.
c4 {[%clk 0:02:56.8]} 7... d6 {[%clk 0:02:48.2]} 8. Nc3 {[%clk 0:02:49.9]} 8...
e5 {[%clk 0:02:47.6]} 9. e3 {[%clk 0:02:45.8]} 9... Re8 {[%clk 0:02:40.8]} 10.
h3 {[%clk 0:02:42.8]} 10... a6 {[%clk 0:02:35.5]} 11. d4 {[%clk 0:02:37.5]}
11... cxd4 {[%clk 0:02:32.7]} 12. exd4 {[%clk 0:02:38.4]} 12... e4 {[%clk
0:02:30.1]} 13. Ng5 {[%clk 0:02:38.3]} 13... e3 {[%clk 0:02:17.3]} 14. fxe3
{[%clk 0:02:27.6]} 14... Rxe3 {[%clk 0:02:07.6]} 15. Qd2 {[%clk 0:02:04.7]}
15... Rxg3 {[%clk 0:01:59.5]} 16. Qf4 {[%clk 0:02:02.7]} 16... Rd3 {[%clk
0:01:35.9]} 17. Nd5 {[%clk 0:01:57.1]} 17... h6 {[%clk 0:01:22.7]} 18. Nxf6+
{[%clk 0:01:37.1]} 18... Bxf6 {[%clk 0:01:22.6]} 19. Ne4 {[%clk 0:01:34]} 19...
Bg7 {[%clk 0:00:59.9]} 20. Qxf7+ {[%clk 0:01:30.3]} 20... Kh8 {[%clk 0:00:57.5]}
21. Qxg6 {[%clk 0:01:23.8]} 21... Bxh3 {[%clk 0:00:40.1]} 22. Nf6 {[%clk
0:01:05.4]} 22... Bxf6 {[%clk 0:00:29.5]} 23. Qxh6+ {[%clk 0:01:05.3]} 1-0